[Event "Czech Open-GM 2022"]
[Site "Pardubice"]
[Date "2022.07.23"]
[Round "2.14"]
[White "Hrbek, Stepan"]
[Black "Jurcik, Marian"]
[Result "1/2-1/2"]
[ECO "A28"]
[WhiteElo "2272"]
[BlackElo "2409"]
[Annotator "TA"]
[PlyCount "36"]
[EventDate "2022.07.22"]
[EventType "swiss"]
[EventCountry "CZE"]
[SourceTitle "playchess.com"]
[Source "ChessBase"]
[SourceQuality "1"]
[TimeControl "40/5400+30:1800+30"]

{[%evp 11,36,13,8,0,15,9,14,22,18,46,46,44,45,46,35,35,35,40,37,0,0,0,0,0,0,-19,-19]} 1. c4 {[%emt 0:00:04]} e5 {[%emt 0:01:45]} 2. Nc3 {[%emt 0:00:15]} Nf6 {[%emt 0:00:13]} 3. Nf3 {[%emt 0:00:11]} Nc6 {[%emt 0:00:10]} 4. e3 {[%emt 0:00:13]} Bb4 {[%emt 0:01:14]} 5. Qc2 {[%emt 0:00:13]} Bxc3 {[%emt 0:00:42]} 6. Qxc3 {[%emt 0:00:18]} Qe7 {[%emt 0:00:30]} 7. b3 {[%emt 0:00:49] A28: English Opening: Four Knights Variation.} d5 $1 {[%emt 0:00:54] 7...d5 is better than 7...0-0.} (7... O-O $5 {[%cal Rd7d5]}) 8. d4 {[%emt 0:01:25][%cal Rf3e5]} exd4 {[%emt 0:30:23]} 9. Nxd4 {[%emt 0:00:09]} Nxd4 {[%emt 0:00:09]} 10. Qxd4 {[%emt 0:00:05]} c5 {[%emt 0:00:17]} 11. Qf4 {[%emt 0:00:07]} O-O {[%emt 0:01:31]} 12. Bb2 {[%emt 0:07:21]} d4 {[%emt 0:05:32]} 13. O-O-O {[%emt 0:02:50]} dxe3 {[%emt 0:01:33]} 14. fxe3 {[%emt 0:00:24]} Ng4 {[%emt 0:13:10] [#]} 15. Rd3 $146 {[%emt 0:13:47]} ({Predecessor:} 15. Re1 f6 16. Bd3 Bd7 17. h3 Ne5 18. Bc2 Rfe8 19. g4 Bc6 20. Rhf1 Ng6 21. Qf5 {½-½ (55) Pavlov,S (2480)-Khusnutdinov,R (2491) Chess.com INT 2020}) 15... f6 {[%emt 0:03:04] The position is equal.} 16. Be2 {[%emt 0:07:42]} Ne5 {[%emt 0:00:52]} 17. Rd2 {[%emt 0:00:19]} Bd7 {[%emt 0:01:58]} 18. Bf3 {[%emt 0:06:07]} Bc6 {[%emt 0:04:23] Weighted Error Value: White=0.07 (flawless) /Black=0.02 (flawless)} 1/2-1/2

[Event "Czech Open-GM 2022"]
[Site "Pardubice"]
[Date "2022.07.23"]
[Round "2.15"]
[White "Moksh Amit Doshi"]
[Black "Klimakovs, Sergejs"]
[Result "1-0"]
[ECO "D45"]
[WhiteElo "2409"]
[BlackElo "2266"]
[Annotator "TA"]
[PlyCount "81"]
[EventDate "2022.07.22"]
[EventType "swiss"]
[EventCountry "CZE"]
[SourceTitle "playchess.com"]
[Source "ChessBase"]
[SourceQuality "1"]
[TimeControl "40/5400+30:1800+30"]

{[%evp 13,81,3,14,0,65,55,104,108,147,152,162,153,150,157,153,139,159,155,180,168,188,131,131,80,85,93,101,91,87,75,167,158,156,74,75,71,85,68,76,75,77,56,61,12,60,64,80,66,69,56,208,208,389,398,330,307,2232,2284,5718,1165,6931,4404,29991,29985,29985,29986,29981,29978,29990,2117]} 1. d4 {[%emt 0:00:50]} d5 {[%emt 0:00:18]} 2. c4 {[%emt 0:00:26]} c6 {[%emt 0:00:12]} 3. Nf3 {[%emt 0:00:17]} Nf6 {[%emt 0:00:07]} 4. e3 {[%emt 0:01:38]} e6 {[%emt 0:00:13]} 5. Nc3 {[%emt 0:03:15]} Nbd7 {[%emt 0:00:19]} 6. Be2 {[%emt 0:00:08]} dxc4 {[%emt 0:01:34]} 7. a4 $1 {[%emt 0:00:12][%mdl 4] is now more promising than 7.Bxc4.} Bb4 {[%emt 0:16:17]} 8. Bxc4 {[%emt 0:03:35] D45: Semi-Slav: 5 e3.} Ne4 {[%emt 0:13:05] [#]} (8... b6 $11) 9. Qb3 $146 {[%emt 0:07:32]} ({Predecessor:} 9. Qc2 Ndf6 10. O-O Bxc3 11. bxc3 Qa5 12. Bb2 Qh5 13. Bd3 Nd6 14. e4 Nd7 15. Ba3 c5 {½-½ (27) Zivcic,O (1751)-Matosin,J (1587) Hvar 2019}) 9... Qa5 {[%emt 0:06:14]} (9... Qb6 $14 {is more appropriate.}) 10. O-O $16 {[%emt 0:00:25] White is better.} Ndf6 {[%emt 0:23:39]} 11. Bd3 {[%emt 0:04:39]} Nxc3 {[%emt 0:16:38]} 12. bxc3 {[%emt 0:00:08]} Be7 {[%emt 0:03:23]} 13. e4 {[%emt 0:00:55][%cal Be3e4,Be4e5][%mdl 32]} h6 {[%emt 0:08:34]} 14. e5 {[%emt 0:03:09]} Nd7 {[%emt 0:01:37]} 15. Re1 {[%emt 0:03:23]} Qb6 {[%emt 0:02:23]} 16. Qd1 {[%emt 0:02:47]} c5 {[%emt 0:01:08]} 17. Rb1 {[%emt 0:02:26]} (17. Ba3 $18) 17... Qc7 {[%emt 0:00:54]} 18. Qe2 {[%emt 0:06:10]} (18. Nd2 $142) 18... cxd4 {[%emt 0:01:02]} 19. cxd4 {[%emt 0:00:08][%cal Od4d5] Hoping for d5!} Nb6 {[%emt 0:00:09]} 20. Bd2 {[%emt 0:00:58]} Nd5 {[%emt 0:00:40]} 21. a5 {[%emt 0:02:08][%cal Ba4a5,Ba5a6][%mdl 32]} Bd7 {[%emt 0:01:08]} (21... Qd8 $16) 22. Rec1 $18 {[%emt 0:00:08]} Qb8 {[%emt 0:00:37]} 23. Bb5 {[%emt 0:00:28]} (23. Bc4 $142) 23... Qd8 $16 {[%emt 0:00:01]} 24. Bc4 {[%emt 0:02:43] Bxd5 is the strong threat.} Bc6 {[%emt 0:00:41]} 25. a6 {[%emt 0:00:05]} b6 {[%emt 0:01:06]} 26. Bd3 $36 {[%emt 0:00:05][%mdl 2048] White is really pushing.} Bd7 {[%emt 0:00:14]} 27. Qe4 {[%emt 0:00:29]} Ba3 {[%emt 0:00:31]} 28. Qg4 {[%emt 0:01:43]} (28. Rc2 $14) 28... Kf8 {[%emt 0:00:20]} (28... Bxc1 $11 {feels stronger.} 29. Qxg7 Bxd2 30. Qxh8+ Ke7 31. Qxd8+ Rxd8 32. Nxd2 Rc8) 29. Re1 {[%emt 0:01:08]} Rc8 {[%emt 0:00:12]} 30. h4 {[%cal Bh2h4,Bh4h5][%mdl 32]} Bc6 31. h5 {[%emt 0:02:59] White is much more active.} Ba8 $2 {[%emt 0:01:41] [#] Loses the game.} ({Better is} 31... Be8 $14) 32. Nh4 $1 $18 {[%emt 0:01:41]} Be7 $2 {[%emt 0:00:17] [#]} (32... Kg8 {might work better.} 33. Ng6 Rc7) 33. Ng6+ $1 {[%emt 0:00:37][%mdl 512]} fxg6 {[%emt 0:00:05]} 34. Bxg6 {[%emt 0:00:03]} Bg5 $2 {[%emt 0:01:18] [#]} (34... Qd7) 35. Qxe6 $1 {[%emt 0:03:26][%csl Gg6][%cal Re6f7]} Rc7 {[%emt 0:00:43] [#] Inhibits Qf7+.} (35... Qe8 36. Qf5+) 36. Rbc1 $1 {[%emt 0:00:21]} Qe7 {[%emt 0:00:31]} (36... Qd7 37. Qxd7) 37. Qf5+ {[%emt 0:00:26]} Kg8 {[%emt 0:00:27]} 38. Bxg5 {[%emt 0:00:21] White mates.} hxg5 {[%emt 0:00:18]} 39. Rxc7 {[%emt 0:00:16]} Nxc7 {[%emt 0:00:11]} 40. Qc8+ {[%emt 0:00:06][%mdl 64] Skewer} Qf8 {[%emt 0:01:05]} 41. Qxc7 {[%emt 0:30:09] Weighted Error Value: White=0.09 (flawless) /Black=0.44} 1-0

[Event "Czech Open-GM 2022"]
[Site "Pardubice"]
[Date "2022.07.23"]
[Round "2.16"]
[White "Crevatin, Leo"]
[Black "Hollan, Martin"]
[Result "1-0"]
[ECO "E20"]
[WhiteElo "2259"]
[BlackElo "2399"]
[Annotator "TA"]
[PlyCount "109"]
[EventDate "2022.07.22"]
[EventType "swiss"]
[EventCountry "CZE"]
[SourceTitle "playchess.com"]
[Source "ChessBase"]
[SourceQuality "1"]
[TimeControl "40/5400+30:1800+30"]

{[%evp 10,109,-8,-10,12,12,6,18,11,0,10,18,20,25,31,42,38,33,32,16,12,20,14,14,20,15,41,0,0,0,0,0,0,-14,-4,-39,-39,-67,-58,-64,-66,-89,-87,-89,0,0,0,-6,0,0,0,-70,-57,-60,0,0,0,0,0,-253,-253,-236,-250,-237,-232,-285,-284,-498,-313,-331,-209,-214,-197,-265,-98,-91,0,0,0,0,0,0,0,-192,0,0,0,0,0,0,64,0,0,0,336,330,1062,964,4618,4618,1713,1592]} 1. d4 Nf6 2. c4 e6 3. Nc3 Bb4 4. f3 O-O 5. a3 Bxc3+ 6. bxc3 Nh5 {E27: Nimzo-Indian: Sämisch: 5...0-0 6 f3.} 7. Nh3 f5 8. e4 fxe4 {The position is equal.} 9. Bg5 Qe8 10. fxe4 {e5 is the strong threat.} e5 11. Be2 Nf6 12. O-O d6 $1 13. Bxf6 gxf6 14. Bh5 Qe7 15. Nf2 Nc6 16. Ng4 Bxg4 17. Qxg4+ {[#]} Qg7 $146 ({Predecessor:} 17... Kh8 18. Rad1 Na5 19. Qh3 Nxc4 20. Bg6 Qg7 21. Bf5 Qe7 22. Rf3 Rad8 23. Bg6 Rd7 {1-0 (57) Antonov,V (2362)-Runting,T (2350) ICCF email 2017}) 18. Qe6+ Kh8 19. d5 Na5 20. Rf3 Nb3 21. Re1 Nc5 22. Qh3 Rg8 23. Rg3 Qh6 24. Rxg8+ Rxg8 25. Qf3 f5 26. exf5 e4 ({Better is} 26... Rg5 $1 $17 27. Bf7 Qh4) 27. Qd1 $11 (27. Qe2 $2 Nd3 28. Rb1 Nf4 29. Qxe4 Nxh5 30. Qd4+ Nf6 $19) 27... Rg5 {[%csl LRf5,LRh5]} 28. Bg4 Qg7 29. f6 Qxf6 30. Rf1 (30. Qd4 $11 Qg7 31. Rf1) 30... Qxc3 $15 31. Be6 Qe3+ (31... Nxe6 32. dxe6 Qe5 33. Rf8+ Kg7 34. Rf7+ Kg6 35. h4 Qxe6 36. Rxc7 $11) (31... Qd3 $1 $15) 32. Kh1 $11 Nd3 $1 {[%cal Bc5d3,Bd3f2,Bf2g4,Bg4f6][%mdl 32]} (32... Nxe6 $2 33. dxe6 Re5 34. Qg4 $18) 33. h4 ({Don't play} 33. Rf8+ Kg7 34. Qf1 Qe1 35. Rf7+ Kh6 36. Qxe1 Nxe1 $15) 33... Rg6 $40 {[%mdl 128] Threatens to win with ...Nf2+. Black is up to no good.} 34. Qh5 $2 {[%mdl 8192]} (34. h5 $11 Qh6 35. Qa4 Rxe6 36. dxe6 Qxh5+ 37. Kg1 Qc5+ 38. Kh2 Qh5+ 39. Kg1 Qc5+ 40. Kh2 Qh5+ 41. Kg1) 34... Nf2+ $19 35. Kg1 Ng4+ 36. Kh1 {Rf8+ would kill now.} Nf6 $1 37. Qd1 Qg3 {[%csl Gg6][%cal Rg3g2]} ({Weaker is} 37... Qxa3 38. h5 Rh6 39. Qd4 $17) 38. Bh3 (38. Qd2 Qxh4+ 39. Kg1) 38... Qxh4 {And now ...e3 would win.} 39. c5 Kg7 ({Don't blunder} 39... dxc5 $2 40. d6 cxd6 41. Qxd6 $19) 40. cxd6 cxd6 {Strongly threatening ...e3.} 41. Qa4 (41. Qd4 $142) 41... Qg3 $2 (41... Nh5 $19 {is more deadly. White must now prevent ...Ng3+.} 42. Qd7+ Kh6) 42. Qxa7 $17 e3 ({Black should try} 42... Kh6 $17 {Hoping for ...Ng4.} 43. Qa8 Nh5 44. Qf8+ Rg7) 43. Qxb7+ $11 Kh6 44. Qe7 Nxd5 45. Qf8+ Rg7 46. Qe8 $2 {[#]} (46. Bg4 $1 $11 {and White stays safe.}) 46... Nf4 $2 ({Black should play} 46... Qg5 $1 $19 {[%cal Rg5e7] aiming for ...Qe7.} 47. Kg1 Qe7 48. Qxe7 Rxe7) 47. Rf3 {The board is on fire.} Qe1+ 48. Kh2 Qh4 {( -> ...Rxg2+)} 49. Qxe3 Rxg2+ $1 50. Kh1 Rg4 51. Qd2 d5 $2 {[%mdl 8192] [#]} (51... Rg3 $11 {and Black has nothing to worry.} 52. Qxd6+ Kh5 53. Qe5+ Kh6 54. Qd6+ Kh5 55. Qe5+ Kh6 56. Qd6+) 52. Qh2 $1 $18 Qe1+ $2 (52... Rg6 53. Rxf4 Qg3) 53. Rf1 {White is clearly winning.} Rh4 54. Rxe1 {White threatens Re3 and mate.} Rxh3 {[#]} 55. a4 $1 {Never resign too early!  Weighted Error Value: White=0.28 (precise) /Black=0.37} 1-0

[Event "Czech Open-GM 2022"]
[Site "Pardubice"]
[Date "2022.07.23"]
[Round "2.17"]
[White "Tahay, Alexis"]
[Black "Luberanski, Jakub"]
[Result "1/2-1/2"]
[ECO "B10"]
[WhiteElo "2393"]
[BlackElo "2241"]
[Annotator "TA"]
[PlyCount "130"]
[EventDate "2022.07.22"]
[EventType "swiss"]
[EventCountry "CZE"]
[SourceTitle "playchess.com"]
[Source "ChessBase"]
[SourceQuality "1"]
[TimeControl "40/5400+30:1800+30"]

{[%evp 9,130,0,-2,0,2,11,18,24,27,27,19,19,18,22,14,13,13,14,20,21,27,31,35,0,0,0,10,6,19,0,0,0,3,0,0,0,0,0,0,0,0,0,0,-16,-12,-11,-11,-60,-58,-51,-50,-74,-57,-77,-87,-83,-75,-157,-157,-150,-153,-141,-121,-157,-157,-157,-157,-157,-157,-156,-163,-202,-214,-190,-178,-195,-146,-140,-138,-138,-145,-131,-131,-223,-245,-406,-319,-470,-418,-419,-321,-394,-165,-165,-158,-165,0,-174,-136,-876,-891,-927,-989,-1613,-1397,-5976,-4160,-12842,-12843,-12834,-26,-26,-25,-25,-25,-25,-8,-8,-8,-25,0,-8,0]} 1. e4 c6 2. Nf3 {[%cal Bg1f3,Bf3e1,Be1d3][%mdl 32]} d5 3. d3 dxe4 4. dxe4 Qxd1+ 5. Kxd1 Nf6 6. Nbd2 {B10: Caro-Kann: 2 d3 and 2 c4.} Nbd7 7. Ne1 Nc5 8. f3 Nfd7 {[%cal Bf6d7,Bd7b6,Bb6c8,Bc8d6][%mdl 32]} 9. a4 a5 10. Nc4 e5 11. Be3 {[%cal Bc1e3,Be3c5,Bc5f2][%mdl 32]} f6 12. Nd3 {[%cal Oc4b6]} Kd8 {[#]} 13. Nb6 $1 Nxb6 14. Nxc5 Bxc5 15. Bxc5 Kc7 16. c3 {[#]} Be6 $146 {[%cal Ob6a4]} ({Predecessor:} 16... Rd8+ 17. Kc2 Nd7 18. Be7 Re8 19. Ba3 b6 20. Bc4 Nc5 21. Bxc5 bxc5 22. Rad1 Be6 23. Bxe6 Rxe6 {½-½ (43) Janik,I (2500)-Chomczyk,M (2194) Warsaw 2021}) 17. Kc2 Nc8 18. Be2 b6 19. Bf2 Nd6 20. Rhd1 {[%cal Of2b6]} Rhd8 21. g4 (21. b3 {with more complications.} Nb7 22. Be3 Nc5 23. Rxd8 Rxd8 24. b4) 21... Nb7 22. Rxd8 Rxd8 23. b4 {[%cal Og4g5]} Ra8 24. g5 fxg5 25. Bg3 Kd6 26. b5 cxb5 27. Bxb5 Nc5 28. Kb2 (28. c4 $11 {was preferrable.}) 28... Rf8 $1 $15 29. Rd1+ Ke7 30. Bxe5 Rxf3 31. Rd2 {Inhibits Rf2.} Nxe4 32. Re2 Nd6 33. Bxg7 (33. Bd4 $142) 33... Nxb5 $17 34. axb5 {[%mdl 4096] Endgame KRB-KRB} Rf5 $1 35. Be5 Bc4 36. Re3 Kd7 ({Weaker is} 36... Bxb5 37. Bd4+ Kd6 38. Rh3 $17) 37. Re4 Bxb5 38. Bg3 Bc6 39. Re2 h5 {[%cal Bh7h5,Bh5h4][%mdl 32]} 40. c4 h4 41. Bf2 Bf3 42. Re1 {[#]} Bd5 $1 {[%mdl 512]} 43. Bxb6 Bxc4 44. Kc3 Be6 45. Ra1 Rf3+ 46. Kd4 (46. Kd2 $17) 46... a4 $1 $19 {And now ...a3 would win.} 47. Ke5 $2 (47. Ke4 {was forced.} Rf4+ 48. Ke5) 47... Bb3 48. Rg1 (48. Bd4 $142) 48... Rh3 49. Rg2 g4 50. Bd4 Be6 (50... a3 $142 51. Rxg4 Rxh2 52. Rg7+ Kc8) 51. Rd2 Bc4 52. Kf4 Be6 53. Ke5 $1 Ke7 {Strongly threatening ...a3.} 54. Kf4 $2 {[%mdl 8192]} (54. Bc5+ $17 Kf7 55. Rf2+ Rf3 56. Rxf3+ gxf3 57. Bd4) 54... a3 {[%cal Ba4a3,Ba3a2][%mdl 32]} 55. Kg5 a2 {Hoping for ...g3.} 56. Kg6 Rf3 {White must now prevent ...g3.} 57. Kg5 Rf5+ 58. Kg6 Rd5 59. Bf6+ Kd7 $2 ({Black should play} 59... Kf8 $1 $19 {( -> ...Bf7+)} 60. Bg7+ Kg8 61. Rxa2 Bf7+ 62. Kf6 Rd6+ 63. Kf5 Bxa2 64. Be5 Rd5 65. Ke4 {[#]} Rxe5+ $1 {[%mdl 512]} 66. Kf4 g3 $1 67. hxg3 h3 $1 68. Kxe5 h2 69. g4 h1=Q 70. Kd4 Qd5+ 71. Kc3 Kf7 72. Kb4 Qc4+ 73. Ka5 Qb3 74. g5 Qb7 75. g6+ Kg7 76. Ka4 Qb6 77. Ka3 Qb3#) 60. Rxa2 $11 h3 {[%cal Og4g3] ...g3! is the strong threat.} 61. Ra7+ Kc8 {[%cal Og4g3] Threatens to win with ...g3!} 62. Bh4 Rd3 63. Kf6 Bd5 64. Kg5 Be6 65. Bg3 Rd7 {Whites escaped into a draw.  Weighted Error Value: White=0.56/Black=0.12 (very precise)} 1/2-1/2

[Event "Czech Open-GM 2022"]
[Site "Pardubice"]
[Date "2022.07.23"]
[Round "2.18"]
[White "Mullick, Raahil"]
[Black "Finek, Vaclav"]
[Result "1-0"]
[ECO "B35"]
[WhiteElo "2237"]
[BlackElo "2393"]
[Annotator "TA"]
[PlyCount "145"]
[EventDate "2022.07.22"]
[EventType "swiss"]
[EventCountry "CZE"]
[SourceTitle "playchess.com"]
[Source "ChessBase"]
[SourceQuality "1"]
[TimeControl "40/5400+30:1800+30"]

{[%evp 20,145,23,27,39,40,45,24,23,20,56,40,52,40,52,35,33,-12,-12,-12,-12,-9,-8,-10,-14,-14,-14,-70,-66,-68,-61,-70,-60,-67,-75,-75,-73,-95,-85,-95,-78,-119,-103,-99,-67,-77,-59,-89,-64,-147,-118,-113,-35,-35,-15,-52,-18,-18,-8,-8,-8,-8,-8,-8,-8,-37,0,0,0,0,0,0,0,-67,8,8,8,8,557,464,576,493,515,504,454,438,677,680,646,637,605,560,794,749,935,617,631,618,29972,29974,29982,29983,29983,2547,2277,2251,3508,11871,5414,1598,29954,5118,29987,29988,29988,29989,29989,29990,29991,29992,29992,29993,29993,29993,29993,29992,29995,29996]} 1. e4 {[%emt 0:00:05]} c5 {[%emt 0:00:04]} 2. Nf3 {[%emt 0:00:04]} g6 {[%emt 0:00:05]} 3. d4 {[%emt 0:00:03]} cxd4 {[%emt 0:00:04]} 4. Nxd4 {[%emt 0:00:04]} Bg7 {[%emt 0:00:06]} 5. Nc3 {[%emt 0:00:04]} Nc6 {[%emt 0:00:07]} 6. Be3 {[%emt 0:00:04]} Nf6 {[%emt 0:00:05]} 7. Bc4 {[%emt 0:00:02]} Qa5 {[%emt 0:00:05]} 8. O-O {[%emt 0:00:13]} O-O {[%emt 0:00:33]} 9. Bb3 {[%emt 0:00:53]} d6 {[%emt 0:00:05]} 10. h3 {[%emt 0:00:09]} Bd7 {[%emt 0:00:06]} 11. Re1 {[%emt 0:00:54]} Rfc8 {[%emt 0:00:15] B35: Sicilian: Accelerated Dragon with 5 Nc3: main line.} 12. f4 {[%emt 0:04:44]} Nxd4 {[%emt 0:18:57]} 13. Bxd4 {[%emt 0:00:07]} Bc6 {[%emt 0:00:33] [#] White has an edge.} 14. Qd2 $146 {[%emt 0:17:51]} ({Predecessor:} 14. Nd5 Re8 15. c3 Nd7 16. f5 Bxd4+ 17. Qxd4 Rac8 18. Kh1 Bxd5 19. Bxd5 Qb6 20. Qxb6 Nxb6 21. Bxb7 {½-½ (31) Lounek,J (2527)-Schlenther,M (2527) LSS email 2020}) 14... b5 {[%emt 0:19:25]} 15. Rad1 {[%emt 0:01:18]} b4 {[%emt 0:04:17]} 16. Nd5 {[%emt 0:00:13]} (16. e5 {looks sharper.} dxe5 17. fxe5 bxc3 18. Bxc3 Qb6+ 19. Bd4) 16... Bxd5 {[%emt 0:00:22]} 17. exd5 {[%emt 0:00:53]} Rc7 {[%emt 0:02:08]} 18. Re2 {[%emt 0:07:51][%cal Oa2a3]} Qb5 {[%emt 0:03:35]} 19. Rde1 {[%emt 0:02:32]} a5 {[%emt 0:00:43]} 20. a4 {[%emt 0:01:34]} (20. Rxe7 $2 Rxe7 21. Rxe7 a4 $19) 20... bxa3 {[%emt 0:01:59]} 21. bxa3 {[%emt 0:00:22]} a4 {[%emt 0:01:03]} 22. Ba2 {[%emt 0:00:04][%cal Bb3a2,Ba2b1,Bb1d3,Bd3b5,Bb5c6][%mdl 32]} Nh5 {[%emt 0:11:08]} 23. Rxe7 {[%emt 0:10:00]} (23. Kh2 $11) 23... Bxd4+ $15 {[%emt 0:02:35]} 24. Qxd4 {[%emt 0:00:01]} Rxc2 {[%emt 0:01:50]} ({But not} 24... Rxe7 25. Rxe7 Qa5 26. g4 $16) 25. Bb1 {[%emt 0:06:40]} Rc4 {[%emt 0:03:05]} 26. Bd3 {[%emt 0:06:59]} Rxd4 {[%emt 0:00:45]} 27. Bxb5 {[%emt 0:00:04][%cal Of4f5]} Nf6 {[%emt 0:07:06]} 28. Bc6 {[%emt 0:02:51]} Rb8 {[%emt 0:06:36]} 29. f5 {[%emt 0:10:20]} Rb2 {[%emt 0:04:50] Threatens to win with ...Rdd2.} (29... Nxd5 $6 30. Ra7 $11) 30. R1e2 {[%emt 0:12:56]} Rxe2 {[%emt 0:02:27]} 31. Rxe2 $17 {[%emt 0:00:05][%mdl 4096] Endgame KRB-KRN} Ne4 {[%emt 0:01:02]} ({Of course not} 31... Nxd5 $6 32. fxg6 hxg6 33. Bxd5 Rxd5 34. Re4 $15) 32. fxg6 {[%emt 0:02:22]} hxg6 {[%emt 0:00:09]} 33. Rb2 {[%emt 0:02:57]} Kg7 {[%emt 0:03:08]} 34. Rb7 {[%emt 0:01:36] [#]} ({Better is} 34. Rb8 $15) 34... Nc5 $1 {[%emt 0:00:58]} 35. Ra7 {[%emt 0:00:07]} Re4 {[%emt 0:01:52]} ({Black should try} 35... Rd3 $17 36. Be8 Rxa3 37. Rxf7+ Kh6) 36. Kf2 $15 {[%emt 0:02:06]} Kf6 {[%emt 0:00:17]} 37. Kf3 {[%emt 0:00:09]} g5 {[%emt 0:01:34]} 38. g3 {[%emt 0:01:03]} Rc4 {[%emt 0:02:46]} 39. Be8 $1 {[%emt 0:00:19]} Rc3+ {[%emt 0:00:13]} 40. Kg4 {[%emt 0:00:36]} Rxa3 {[%emt 0:00:36]} 41. Rxf7+ {[%emt 0:30:49]} Ke5 {[%emt 0:30:09] And now ...Ne4 would win.} 42. h4 {[%emt 0:06:03]} Ne4 {[%emt 0:00:00]} 43. Re7+ $1 {[%emt 0:00:00]} Kd4 {[%emt 0:00:00]} 44. hxg5 {[%emt 0:00:00]} Re3 {[%emt 0:00:00] ...Nf2+ is the strong threat.} (44... Kxd5 $2 {[#]} 45. Rxe4 $1 {[%mdl 512]} Kxe4 46. g6 $18) 45. Kf4 {[%emt 0:00:00]} a3 {[%emt 0:00:00] White must now prevent ...a2.} 46. g6 {[%emt 0:00:00]} (46. Ra7 $11 Nc3 47. Bc6) 46... a2 {[%emt 0:00:00]} (46... Re1 $1 $15 47. Ra7 Rf1+ 48. Kg4 Nf6+ 49. Kg5 Nxe8 50. Rxa3 Kxd5) 47. Ra7 $11 {[%emt 0:00:00]} Nc3 {[%emt 0:00:00] Inhibits Ra4+.} 48. Bf7 {[%emt 0:00:00]} Re7 $2 {[%emt 0:04:22][%mdl 8192] A mistake that costs the game.} 49. Ra5 $18 {[%emt 0:00:00]} Kc4 {[%emt 0:00:41]} 50. Kg4 {[%emt 0:00:00] Strongly threatening g7.} Kb3 {[%emt 0:01:16]} 51. g7 {[%emt 0:01:01]} Re4+ {[%emt 0:01:05]} 52. Kf5 {[%emt 0:01:52]} Ra4 {[%emt 0:00:34]} (52... Na4 $142 53. Kxe4 a1=Q) 53. Rxa4 {[%emt 0:00:05]} Nxa4 {[%emt 0:00:03]} 54. g8=Q {[%emt 0:00:06] Threatening mate with Qh8.} a1=Q {[%emt 0:00:10] Against Qh8. KQB-KQN} 55. Qb8+ {[%emt 0:00:08]} Kc4 {[%emt 0:00:12]} 56. Qxd6 {[%emt 0:00:10]} Qb1+ {[%emt 0:00:32]} 57. Kg5 {[%emt 0:00:51] Qc6+ would kill now.} Nc5 {[%emt 0:01:47] aiming for ...Ne4+.} 58. Qf4+ {[%emt 0:00:03]} Kc3 {[%emt 0:00:09]} 59. Qe5+ {[%emt 0:00:47]} Kc4 {[%emt 0:00:46]} 60. d6+ {[%emt 0:00:53]} Kb5 {[%emt 0:00:04]} 61. Be8+ {[%emt 0:00:46]} (61. d7 $142 Qc1+ 62. Kg6 Qc2+ 63. Kg7 Qd2 64. Qb8+ Kc6 65. Qc8+ Kb5 66. d8=Q) 61... Kb6 {[%emt 0:00:13]} 62. d7 {[%emt 0:00:05]} Qc1+ {[%emt 0:00:11]} 63. Kg6 {[%emt 0:00:12]} Qc2+ {[%emt 0:00:21]} 64. Kg7 {[%emt 0:00:01]} (64. Kf6 $142 Nb7 65. Qd4+ Ka6 66. g4) 64... Qd3 {[%emt 0:00:45]} 65. Qf6+ {[%emt 0:01:11]} Kc7 {[%emt 0:00:05]} 66. Qf4+ {[%emt 0:00:03] White mates.} Kb7 {[%emt 0:01:27]} 67. Qb4+ {[%emt 0:00:05]} Ka8 {[%emt 0:00:45]} 68. Qxc5 {[%emt 0:00:53]} Qxg3+ {[%emt 0:00:04]} 69. Bg6 {[%emt 0:00:11]} Qc7 {[%emt 0:00:09]} 70. Qe7 {[%emt 0:00:59]} Qc3+ {[%emt 0:00:12]} 71. Kg8 {[%emt 0:00:30]} Qb3+ {[%emt 0:00:35]} 72. Qf7 {[%emt 0:00:05]} Qb6 {[%emt 0:01:33]} 73. Be4+ {[%emt 0:00:12] Weighted Error Value: White=0.21 (precise) /Black=0.44} 1-0